[Event "Titled Tuesday Blitz August 3 2021"]
[White "Obolentseva, Alexandra"]
[Black "Mekhitarian, Krikor Sevag"]
[WhiteFideId "24153648"]
[BlackFideId "2107660"]
[WhiteElo "2113"]
[BlackElo "2598"]
[Result "0-1"]
[Round "03"]
[TimeControl "180+1"]
[Date "2021.08.03"]
[WhiteClock "0:00:13"]
[BlackClock "0:00:08"]

1. d4 {[%clk 0:03:00]}  Nf6 {[%clk 0:02:59]} 2. c4 {[%clk 0:02:59]}  g6 {[%clk 0:02:58]} 3. Nc3 {[%clk 0:02:59]}  d5 {[%clk 0:02:58]} 4. Nf3 {[%clk 0:02:58]}  Bg7 {[%clk 0:02:58]} 5. e3 {[%clk 0:02:57]}  O-O {[%clk 0:02:57]} 6. cxd5 {[%clk 0:02:57]}  Nxd5 {[%clk 0:02:57]} 7. Bc4 {[%clk 0:02:58]}  Nxc3 {[%clk 0:02:50]} 8. bxc3 {[%clk 0:02:59]}  c5 {[%clk 0:02:51]} 9. O-O {[%clk 0:02:57]}  Qc7 {[%clk 0:02:51]} 10. Qe2 {[%clk 0:02:55]}  Nc6 {[%clk 0:02:48]} 11. Bb2 {[%clk 0:02:53]}  b6 {[%clk 0:02:37]} 12. Rac1 {[%clk 0:02:47]}  e5 {[%clk 0:02:34]} 13. d5 {[%clk 0:02:44]}  Na5 {[%clk 0:02:34]} 14. Bd3 {[%clk 0:02:42]}  c4 {[%clk 0:02:26]} 15. Bb1 {[%clk 0:02:41]}  Nb7 {[%clk 0:02:26]} 16. e4 {[%clk 0:02:40]}  Nd6 {[%clk 0:02:22]} 17. Nd2 {[%clk 0:02:39]}  b5 {[%clk 0:02:20]} 18. a4 {[%clk 0:02:32]}  a6 {[%clk 0:02:20]} 19. Ba3 {[%clk 0:02:30]}  Bh6 {[%clk 0:02:11]} 20. Ba2 {[%clk 0:02:24]}  Bd7 {[%clk 0:02:10]} 21. Rc2 {[%clk 0:02:18]}  f6 {[%clk 0:02:05]} 22. Rb1 {[%clk 0:02:15]}  Rab8 {[%clk 0:02:03]} 23. axb5 {[%clk 0:01:59]}  axb5 {[%clk 0:02:02]} 24. Bb4 {[%clk 0:01:58]}  Kh8 {[%clk 0:01:56]} 25. Nf1 {[%clk 0:01:57]}  Ra8 {[%clk 0:01:53]} 26. Rd1 {[%clk 0:01:45]}  Ra6 {[%clk 0:01:41]} 27. Bb1 {[%clk 0:01:44]}  Rfa8 {[%clk 0:01:33]} 28. Ra2 {[%clk 0:01:41]}  Rxa2 {[%clk 0:01:30]} 29. Bxa2 {[%clk 0:01:42]}  Kg7 {[%clk 0:01:29]} 30. Ng3 {[%clk 0:01:33]}  Qb6 {[%clk 0:01:26]} 31. Bb1 {[%clk 0:01:30]}  Bf4 {[%clk 0:01:22]} 32. Kh1 {[%clk 0:01:26]}  Nb7 {[%clk 0:01:14]} 33. Nf1 {[%clk 0:01:23]}  Nc5 {[%clk 0:01:11]} 34. Ne3 {[%clk 0:01:19]}  h5 {[%clk 0:01:05]} 35. d6 {[%clk 0:01:19]}  Bh6 {[%clk 0:00:58]} 36. Nd5 {[%clk 0:01:15]}  Qa7 {[%clk 0:00:57]} 37. Qf3 {[%clk 0:01:11]}  Rf8 {[%clk 0:00:52]} 38. Ne7 {[%clk 0:00:59]}  Ne6 {[%clk 0:00:46]} 39. Nd5 {[%clk 0:00:46]}  Nc5 {[%clk 0:00:35]} 40. Ne7 {[%clk 0:00:44]}  Bg4 {[%clk 0:00:33]} 41. Qg3 {[%clk 0:00:33]}  Bf4 {[%clk 0:00:34]} 42. Qh4 {[%clk 0:00:29]}  g5 {[%clk 0:00:26]} 43. Nf5+ {[%clk 0:00:25]}  Kh7 {[%clk 0:00:20]} 44. Qxg4 {[%clk 0:00:20]}  hxg4 {[%clk 0:00:20]} 45. Bxc5 {[%clk 0:00:20]}  Qxc5 {[%clk 0:00:20]} 46. d7 {[%clk 0:00:21]}  Qxf2 {[%clk 0:00:15]} 47. Ne7 {[%clk 0:00:14]}  Qh4 {[%clk 0:00:11]} 48. g3 {[%clk 0:00:12]}  Bxg3 {[%clk 0:00:11]} 49. Rd2 {[%clk 0:00:13]}  Bf4 {[%clk 0:00:11]} 50. Re2 {[%clk 0:00:12]}  Rd8 {[%clk 0:00:11]} 51. Nf5 {[%clk 0:00:13]}  Qh3 {[%clk 0:00:08]} 0-1


[Site "https://www.chess.com"]

[Event "Titled Tuesday Blitz August 3 2021"]
[White "Oparin, Grigoriy"]
[Black "Molina, Roberto Junio Brito"]
[WhiteFideId "24125890"]
[BlackFideId "2109450"]
[WhiteElo "2628"]
[BlackElo "2402"]
[Result "1/2-1/2"]
[Round "03"]
[TimeControl "180+1"]
[Date "2021.08.03"]
[WhiteClock "0:00:55"]
[BlackClock "0:00:12"]

1. d4 {[%clk 0:03:00]}  d5 {[%clk 0:03:00]} 2. c4 {[%clk 0:03:00]}  c6 {[%clk 0:03:00]} 3. Nf3 {[%clk 0:03:01]}  Nf6 {[%clk 0:03:01]} 4. g3 {[%clk 0:03:01]}  Bf5 {[%clk 0:02:59]} 5. Nc3 {[%clk 0:03:01]}  e6 {[%clk 0:02:59]} 6. Qb3 {[%clk 0:03:01]}  Qb6 {[%clk 0:03:00]} 7. Nh4 {[%clk 0:02:56]}  Qxb3 {[%clk 0:02:50]} 8. axb3 {[%clk 0:02:57]}  Bc2 {[%clk 0:02:44]} 9. c5 {[%clk 0:02:55]}  Bxb3 {[%clk 0:02:40]} 10. e3 {[%clk 0:02:55]}  Nbd7 {[%clk 0:02:28]} 11. Ra3 {[%clk 0:02:51]}  Bc4 {[%clk 0:02:07]} 12. Bxc4 {[%clk 0:02:50]}  dxc4 {[%clk 0:02:08]} 13. Ra4 {[%clk 0:02:51]}  b5 {[%clk 0:01:57]} 14. cxb6 {[%clk 0:02:51]}  Nxb6 {[%clk 0:01:57]} 15. Ra6 {[%clk 0:02:52]}  Be7 {[%clk 0:01:49]} 16. Bd2 {[%clk 0:02:52]}  O-O {[%clk 0:01:48]} 17. Ke2 {[%clk 0:02:53]}  c5 {[%clk 0:01:45]} 18. dxc5 {[%clk 0:02:46]}  Bxc5 {[%clk 0:01:46]} 19. Rha1 {[%clk 0:02:46]}  Nbd5 {[%clk 0:01:42]} 20. Nf3 {[%clk 0:02:34]}  Rab8 {[%clk 0:01:40]} 21. R6a5 {[%clk 0:02:24]}  Rfc8 {[%clk 0:01:12]} 22. R1a2 {[%clk 0:02:23]}  Bb4 {[%clk 0:01:01]} 23. R5a4 {[%clk 0:02:16]}  Bxc3 {[%clk 0:01:00]} 24. Bxc3 {[%clk 0:02:12]}  Ne4 {[%clk 0:00:50]} 25. Be5 {[%clk 0:02:12]}  Rb7 {[%clk 0:00:46]} 26. Rxa7 {[%clk 0:02:02]}  Rxa7 {[%clk 0:00:47]} 27. Rxa7 {[%clk 0:02:03]}  f6 {[%clk 0:00:47]} 28. Bd4 {[%clk 0:01:46]}  e5 {[%clk 0:00:47]} 29. Nxe5 {[%clk 0:01:47]}  fxe5 {[%clk 0:00:46]} 30. Bxe5 {[%clk 0:01:48]}  Nef6 {[%clk 0:00:39]} 31. e4 {[%clk 0:01:48]}  c3 {[%clk 0:00:25]} 32. bxc3 {[%clk 0:01:18]}  Nxc3+ {[%clk 0:00:26]} 33. Bxc3 {[%clk 0:01:18]}  Rxc3 {[%clk 0:00:27]} 34. e5 {[%clk 0:01:16]}  Nd5 {[%clk 0:00:27]} 35. f4 {[%clk 0:01:14]}  Rc7 {[%clk 0:00:27]} 36. Rxc7 {[%clk 0:01:12]}  Nxc7 {[%clk 0:00:28]} 37. Ke3 {[%clk 0:01:12]}  Kf7 {[%clk 0:00:28]} 38. Ke4 {[%clk 0:01:13]}  g6 {[%clk 0:00:28]} 39. g4 {[%clk 0:01:13]}  Ne6 {[%clk 0:00:26]} 40. h4 {[%clk 0:01:09]}  h5 {[%clk 0:00:19]} 41. gxh5 {[%clk 0:01:06]}  gxh5 {[%clk 0:00:18]} 42. f5 {[%clk 0:01:07]}  Nc5+ {[%clk 0:00:18]} 43. Ke3 {[%clk 0:01:05]}  Ke7 {[%clk 0:00:18]} 44. Kf4 {[%clk 0:01:04]}  Nd3+ {[%clk 0:00:17]} 45. Ke4 {[%clk 0:01:04]}  Nc5+ {[%clk 0:00:17]} 46. Kd4 {[%clk 0:01:01]}  Nb3+ {[%clk 0:00:15]} 47. Kd5 {[%clk 0:00:58]}  Nd2 {[%clk 0:00:15]} 48. e6 {[%clk 0:00:52]}  Nf3 {[%clk 0:00:13]} 49. Ke4 {[%clk 0:00:52]}  Nxh4 {[%clk 0:00:12]} 50. Kf4 {[%clk 0:00:53]}  Nxf5 {[%clk 0:00:09]} 51. Kxf5 {[%clk 0:00:53]}  h4 {[%clk 0:00:10]} 52. Kg4 {[%clk 0:00:54]}  h3 {[%clk 0:00:11]} 53. Kxh3 {[%clk 0:00:55]}  Kxe6 {[%clk 0:00:12]} 1/2-1/2


[Site "https://www.chess.com"]

[Event "Titled Tuesday Blitz August 3 2021"]
[White "Papasimakopoulos, Alexandros"]
[Black "Coto Mederos, Michel"]
[WhiteFideId "4244125"]
[BlackFideId "3508528"]
[WhiteElo "2352"]
[BlackElo "2427"]
[Result "1-0"]
[Round "03"]
[TimeControl "180+1"]
[Date "2021.08.03"]
[WhiteClock "0:01:17"]
[BlackClock "0:00:14"]

1. d4 {[%clk 0:03:00]}  f5 {[%clk 0:02:57]} 2. e4 {[%clk 0:03:00]}  fxe4 {[%clk 0:02:54]} 3. Nc3 {[%clk 0:03:00]}  Nf6 {[%clk 0:02:54]} 4. Bg5 {[%clk 0:03:00]}  g6 {[%clk 0:02:47]} 5. f3 {[%clk 0:03:00]}  e3 {[%clk 0:02:40]} 6. Bxe3 {[%clk 0:02:59]}  Bg7 {[%clk 0:02:40]} 7. Qd2 {[%clk 0:02:58]}  e6 {[%clk 0:02:24]} 8. h4 {[%clk 0:02:58]}  b6 {[%clk 0:02:12]} 9. O-O-O {[%clk 0:02:42]}  Bb7 {[%clk 0:02:11]} 10. Bh6 {[%clk 0:02:42]}  Qe7 {[%clk 0:02:12]} 11. Nh3 {[%clk 0:02:31]}  Na6 {[%clk 0:01:48]} 12. Bxg7 {[%clk 0:02:19]}  Qxg7 {[%clk 0:01:48]} 13. Nf4 {[%clk 0:02:19]}  Nb4 {[%clk 0:01:39]} 14. h5 {[%clk 0:02:18]}  g5 {[%clk 0:01:31]} 15. h6 {[%clk 0:02:18]}  Qe7 {[%clk 0:01:26]} 16. Nd3 {[%clk 0:02:11]}  Rg8 {[%clk 0:01:08]} 17. Nxb4 {[%clk 0:02:07]}  Qxb4 {[%clk 0:01:09]} 18. a3 {[%clk 0:02:07]}  Qe7 {[%clk 0:01:05]} 19. Bc4 {[%clk 0:02:04]}  O-O-O {[%clk 0:01:04]} 20. d5 {[%clk 0:02:04]}  exd5 {[%clk 0:01:02]} 21. Nxd5 {[%clk 0:02:03]}  Nxd5 {[%clk 0:00:54]} 22. Bxd5 {[%clk 0:02:04]}  Rg6 {[%clk 0:00:52]} 23. Bxb7+ {[%clk 0:02:03]}  Kxb7 {[%clk 0:00:53]} 24. Rde1 {[%clk 0:02:01]}  Qf6 {[%clk 0:00:49]} 25. Qd5+ {[%clk 0:01:59]}  c6 {[%clk 0:00:43]} 26. Qe5 {[%clk 0:01:59]}  Rf8 {[%clk 0:00:26]} 27. Qxf6 {[%clk 0:01:58]}  Rfxf6 {[%clk 0:00:27]} 28. Re7 {[%clk 0:01:58]}  Rxh6 {[%clk 0:00:27]} 29. Rxd7+ {[%clk 0:01:58]}  Ka6 {[%clk 0:00:27]} 30. Rxh7 {[%clk 0:01:58]}  Rxh1+ {[%clk 0:00:26]} 31. Rxh1 {[%clk 0:01:59]}  g4 {[%clk 0:00:24]} 32. fxg4 {[%clk 0:01:46]}  Rf2 {[%clk 0:00:24]} 33. g3 {[%clk 0:01:46]}  Rf3 {[%clk 0:00:19]} 34. Rh3 {[%clk 0:01:44]}  Kb5 {[%clk 0:00:19]} 35. g5 {[%clk 0:01:44]}  c5 {[%clk 0:00:17]} 36. g6 {[%clk 0:01:42]}  Rf6 {[%clk 0:00:17]} 37. Rh6 {[%clk 0:01:42]}  Rf3 {[%clk 0:00:15]} 38. a4+ {[%clk 0:01:30]}  Kxa4 {[%clk 0:00:09]} 39. Rh4+ {[%clk 0:01:29]}  Kb5 {[%clk 0:00:09]} 40. Rg4 {[%clk 0:01:28]}  Rf8 {[%clk 0:00:10]} 41. g7 {[%clk 0:01:29]}  Rg8 {[%clk 0:00:10]} 42. Rg6 {[%clk 0:01:28]}  Kc4 {[%clk 0:00:10]} 43. Kd2 {[%clk 0:01:27]}  b5 {[%clk 0:00:10]} 44. Ke3 {[%clk 0:01:26]}  b4 {[%clk 0:00:09]} 45. Rg5 {[%clk 0:01:17]}  a5 {[%clk 0:00:09]} 46. b3+ {[%clk 0:01:17]}  Kb5 {[%clk 0:00:09]} 47. Kd3 {[%clk 0:01:17]}  a4 {[%clk 0:00:09]} 48. bxa4+ {[%clk 0:01:17]}  Kxa4 {[%clk 0:00:10]} 49. Kc4 {[%clk 0:01:17]}  Ka3 {[%clk 0:00:11]} 50. Kxc5 {[%clk 0:01:15]}  Kb2 {[%clk 0:00:11]} 51. Kxb4 {[%clk 0:01:15]}  Kxc2 {[%clk 0:00:12]} 52. Kc4 {[%clk 0:01:16]}  Kd2 {[%clk 0:00:12]} 53. Kd5 {[%clk 0:01:16]}  Ke2 {[%clk 0:00:13]} 54. Ke6 {[%clk 0:01:17]}  Kf3 {[%clk 0:00:14]} 55. Kf7 {[%clk 0:01:17]} 1-0


[Site "https://www.chess.com"]

[Event "Titled Tuesday Blitz August 3 2021"]
[White "Quparadze, Giga"]
[Black "Martins, Igor Carvalho Ribeiro"]
[WhiteFideId "13602250"]
[BlackFideId "2162962"]
[WhiteElo "2658"]
[BlackElo "2505"]
[Result "1-0"]
[Round "03"]
[TimeControl "180+1"]
[Date "2021.08.03"]
[WhiteClock "0:00:51"]
[BlackClock "0:00:39"]

1. e4 {[%clk 0:03:00]}  c5 {[%clk 0:02:58]} 2. Nf3 {[%clk 0:03:00]}  d6 {[%clk 0:02:58]} 3. d4 {[%clk 0:03:00]}  cxd4 {[%clk 0:02:58]} 4. Nxd4 {[%clk 0:03:01]}  Nf6 {[%clk 0:02:58]} 5. Nc3 {[%clk 0:03:01]}  a6 {[%clk 0:02:58]} 6. h3 {[%clk 0:03:01]}  e5 {[%clk 0:02:58]} 7. Nde2 {[%clk 0:03:01]}  Be6 {[%clk 0:02:57]} 8. g4 {[%clk 0:02:59]}  h6 {[%clk 0:02:55]} 9. Bg2 {[%clk 0:02:59]}  Nbd7 {[%clk 0:02:54]} 10. Be3 {[%clk 0:02:58]}  Rc8 {[%clk 0:02:53]} 11. O-O {[%clk 0:02:58]}  Nb6 {[%clk 0:02:45]} 12. b3 {[%clk 0:02:56]}  Be7 {[%clk 0:02:41]} 13. a4 {[%clk 0:02:55]}  g6 {[%clk 0:02:38]} 14. Qd2 {[%clk 0:02:50]}  h5 {[%clk 0:02:37]} 15. g5 {[%clk 0:02:50]}  Nfd7 {[%clk 0:02:32]} 16. a5 {[%clk 0:02:48]}  Na8 {[%clk 0:02:32]} 17. h4 {[%clk 0:02:42]}  Nc7 {[%clk 0:02:30]} 18. f4 {[%clk 0:02:37]}  exf4 {[%clk 0:02:29]} 19. Nxf4 {[%clk 0:02:37]}  Ne5 {[%clk 0:02:28]} 20. Bb6 {[%clk 0:02:33]}  Qd7 {[%clk 0:02:27]} 21. Nxe6 {[%clk 0:02:27]}  Qxe6 {[%clk 0:02:20]} 22. Nd5 {[%clk 0:02:09]}  Nxd5 {[%clk 0:02:19]} 23. exd5 {[%clk 0:02:10]}  Qg4 {[%clk 0:02:18]} 24. Rf4 {[%clk 0:02:07]}  Qg3 {[%clk 0:02:10]} 25. Bf2 {[%clk 0:01:33]}  Qc3 {[%clk 0:01:59]} 26. Qxc3 {[%clk 0:01:30]}  Rxc3 {[%clk 0:01:59]} 27. Ra2 {[%clk 0:01:28]}  O-O {[%clk 0:01:49]} 28. Bd4 {[%clk 0:01:28]}  Rc7 {[%clk 0:01:34]} 29. c4 {[%clk 0:01:28]}  f6 {[%clk 0:01:30]} 30. gxf6 {[%clk 0:01:18]}  Bxf6 {[%clk 0:01:30]} 31. Raf2 {[%clk 0:01:18]}  Rcf7 {[%clk 0:01:26]} 32. Bh3 {[%clk 0:00:56]}  Kg7 {[%clk 0:01:22]} 33. Be6 {[%clk 0:00:53]}  Re7 {[%clk 0:01:15]} 34. c5 {[%clk 0:00:52]}  dxc5 {[%clk 0:00:39]} 35. Bxe5 {[%clk 0:00:51]} 1-0


[Site "https://www.chess.com"]

[Event "Titled Tuesday Blitz August 3 2021"]
[White "Rasulov, Vugar"]
[Black "Arabidze, Meri"]
[WhiteFideId "13402390"]
[BlackFideId "13604040"]
[WhiteElo "2553"]
[BlackElo "2432"]
[Result "1-0"]
[Round "03"]
[TimeControl "180+1"]
[Date "2021.08.03"]
[WhiteClock "0:01:36"]
[BlackClock "0:00:08"]

1. d4 {[%clk 0:03:00]}  Nf6 {[%clk 0:02:57]} 2. c4 {[%clk 0:03:01]}  e6 {[%clk 0:02:58]} 3. Nf3 {[%clk 0:03:01]}  d5 {[%clk 0:02:58]} 4. Nc3 {[%clk 0:03:01]}  Nbd7 {[%clk 0:02:58]} 5. Bg5 {[%clk 0:03:00]}  Be7 {[%clk 0:02:58]} 6. e3 {[%clk 0:03:00]}  h6 {[%clk 0:02:58]} 7. Bh4 {[%clk 0:03:00]}  O-O {[%clk 0:02:58]} 8. Rc1 {[%clk 0:02:59]}  c5 {[%clk 0:02:58]} 9. dxc5 {[%clk 0:02:54]}  Nxc5 {[%clk 0:02:54]} 10. cxd5 {[%clk 0:02:50]}  exd5 {[%clk 0:02:50]} 11. Be2 {[%clk 0:02:50]}  Be6 {[%clk 0:02:48]} 12. O-O {[%clk 0:02:50]}  Nce4 {[%clk 0:02:46]} 13. Nxe4 {[%clk 0:02:39]}  dxe4 {[%clk 0:02:40]} 14. Nd4 {[%clk 0:02:39]}  Bd7 {[%clk 0:02:25]} 15. Qb3 {[%clk 0:02:36]}  Qb6 {[%clk 0:02:16]} 16. Qxb6 {[%clk 0:02:32]}  axb6 {[%clk 0:02:17]} 17. a3 {[%clk 0:02:29]}  Rac8 {[%clk 0:02:08]} 18. Rfd1 {[%clk 0:02:26]}  Ba4 {[%clk 0:01:47]} 19. Nf5 {[%clk 0:02:19]}  Bc5 {[%clk 0:01:28]} 20. b4 {[%clk 0:02:09]}  Bxd1 {[%clk 0:01:24]} 21. Rxd1 {[%clk 0:02:10]}  g5 {[%clk 0:01:05]} 22. Nxh6+ {[%clk 0:02:01]}  Kh7 {[%clk 0:00:40]} 23. Bxg5 {[%clk 0:02:02]}  Be7 {[%clk 0:00:40]} 24. Nf5 {[%clk 0:01:56]}  Rfd8 {[%clk 0:00:38]} 25. Rf1 {[%clk 0:01:50]}  Rc2 {[%clk 0:00:17]} 26. Nxe7 {[%clk 0:01:48]}  Rxe2 {[%clk 0:00:17]} 27. Bxf6 {[%clk 0:01:48]}  Rd3 {[%clk 0:00:17]} 28. a4 {[%clk 0:01:42]}  Rb3 {[%clk 0:00:16]} 29. b5 {[%clk 0:01:40]}  Ra3 {[%clk 0:00:15]} 30. h4 {[%clk 0:01:38]}  Rxa4 {[%clk 0:00:15]} 31. Rd1 {[%clk 0:01:38]}  Raa2 {[%clk 0:00:14]} 32. Rd8 {[%clk 0:01:37]}  Re1+ {[%clk 0:00:08]} 33. Kh2 {[%clk 0:01:36]} 1-0


[Site "https://www.chess.com"]

[Event "Titled Tuesday Blitz August 3 2021"]
[White "Rodrigue-Lemieux, Shawn"]
[Black "Mitusov, Semen"]
[WhiteFideId "2620049"]
[BlackFideId "14151049"]
[WhiteElo "1763"]
[BlackElo "2256"]
[Result "1/2-1/2"]
[Round "03"]
[TimeControl "180+1"]
[Date "2021.08.03"]
[WhiteClock "0:00:05"]
[BlackClock "0:00:10"]

1. c4 {[%clk 0:03:00]}  e5 {[%clk 0:02:59]} 2. g3 {[%clk 0:03:01]}  Nc6 {[%clk 0:02:59]} 3. Nc3 {[%clk 0:03:00]}  Bc5 {[%clk 0:02:59]} 4. Bg2 {[%clk 0:03:00]}  a6 {[%clk 0:02:58]} 5. Nf3 {[%clk 0:03:00]}  d6 {[%clk 0:02:50]} 6. O-O {[%clk 0:02:54]}  Nf6 {[%clk 0:02:48]} 7. d3 {[%clk 0:02:54]}  h6 {[%clk 0:02:45]} 8. a3 {[%clk 0:02:53]}  O-O {[%clk 0:02:44]} 9. b4 {[%clk 0:02:53]}  Ba7 {[%clk 0:02:44]} 10. Bb2 {[%clk 0:02:51]}  Be6 {[%clk 0:02:41]} 11. e3 {[%clk 0:02:46]}  Qd7 {[%clk 0:02:39]} 12. Re1 {[%clk 0:02:43]}  e4 {[%clk 0:02:34]} 13. Nxe4 {[%clk 0:02:31]}  Nxe4 {[%clk 0:02:33]} 14. dxe4 {[%clk 0:02:32]}  Bxc4 {[%clk 0:02:32]} 15. e5 {[%clk 0:02:30]}  Rad8 {[%clk 0:02:25]} 16. Qc2 {[%clk 0:02:27]}  d5 {[%clk 0:02:14]} 17. Rad1 {[%clk 0:02:25]}  Qe6 {[%clk 0:02:12]} 18. Nd4 {[%clk 0:02:18]}  Bxd4 {[%clk 0:02:09]} 19. Bxd4 {[%clk 0:02:19]}  Nxd4 {[%clk 0:02:05]} 20. exd4 {[%clk 0:02:20]}  f5 {[%clk 0:01:55]} 21. exf6 {[%clk 0:02:11]}  Qxf6 {[%clk 0:01:54]} 22. Re5 {[%clk 0:02:12]}  Kh8 {[%clk 0:01:43]} 23. Rde1 {[%clk 0:02:10]}  b6 {[%clk 0:01:38]} 24. Qd2 {[%clk 0:02:05]}  Qf7 {[%clk 0:01:22]} 25. Re7 {[%clk 0:02:02]}  Qf6 {[%clk 0:01:14]} 26. R1e6 {[%clk 0:01:59]}  Qf5 {[%clk 0:00:59]} 27. Rxh6+ {[%clk 0:01:55]}  Kg8 {[%clk 0:01:00]} 28. Rhe6 {[%clk 0:01:47]}  c5 {[%clk 0:00:59]} 29. bxc5 {[%clk 0:01:33]}  bxc5 {[%clk 0:00:59]} 30. dxc5 {[%clk 0:01:32]}  d4 {[%clk 0:00:59]} 31. Re5 {[%clk 0:01:23]}  Qb1+ {[%clk 0:00:59]} 32. Re1 {[%clk 0:01:23]}  Qf5 {[%clk 0:00:59]} 33. Be4 {[%clk 0:01:15]}  Qxc5 {[%clk 0:00:55]} 34. Re5 {[%clk 0:01:06]}  Qd6 {[%clk 0:00:45]} 35. Qg5 {[%clk 0:01:05]}  d3 {[%clk 0:00:38]} 36. Re7 {[%clk 0:00:40]}  Qf6 {[%clk 0:00:38]} 37. Qe3 {[%clk 0:00:32]}  d2 {[%clk 0:00:35]} 38. Rd1 {[%clk 0:00:29]}  Bb3 {[%clk 0:00:29]} 39. Qxb3+ {[%clk 0:00:29]}  Kh8 {[%clk 0:00:29]} 40. Re6 {[%clk 0:00:05]}  Qxf2+ {[%clk 0:00:27]} 41. Kh1 {[%clk 0:00:06]}  Qe1+ {[%clk 0:00:20]} 42. Kg2 {[%clk 0:00:05]}  Qe2+ {[%clk 0:00:16]} 43. Kh3 {[%clk 0:00:04]}  Qh5+ {[%clk 0:00:16]} 44. Kg2 {[%clk 0:00:04]}  Qe2+ {[%clk 0:00:15]} 45. Kh3 {[%clk 0:00:05]}  Qh5+ {[%clk 0:00:11]} 46. Kg2 {[%clk 0:00:05]}  Qe2+ {[%clk 0:00:10]} 1/2-1/2


[Site "https://www.chess.com"]

[Event "Titled Tuesday Blitz August 3 2021"]
[White "Sadovsky, Artem"]
[Black "Pein, Jonathan"]
[WhiteFideId "4155840"]
[BlackFideId "417092"]
[WhiteElo "2442"]
[BlackElo "2167"]
[Result "0-1"]
[Round "03"]
[TimeControl "180+1"]
[Date "2021.08.03"]
[WhiteClock "0:00:03"]
[BlackClock "0:00:24"]

1. Nf3 {[%clk 0:03:00]}  d5 {[%clk 0:02:59]} 2. g3 {[%clk 0:03:01]}  Nc6 {[%clk 0:02:58]} 3. d4 {[%clk 0:02:59]}  Bg4 {[%clk 0:02:58]} 4. Bg2 {[%clk 0:02:59]}  Qd7 {[%clk 0:02:58]} 5. h3 {[%clk 0:03:00]}  Bh5 {[%clk 0:02:57]} 6. c4 {[%clk 0:02:51]}  e6 {[%clk 0:02:54]} 7. Nc3 {[%clk 0:02:48]}  f6 {[%clk 0:02:54]} 8. Qb3 {[%clk 0:02:37]}  O-O-O {[%clk 0:02:53]} 9. cxd5 {[%clk 0:02:26]}  exd5 {[%clk 0:02:50]} 10. e3 {[%clk 0:02:15]}  Bf7 {[%clk 0:02:50]} 11. Bd2 {[%clk 0:02:07]}  g5 {[%clk 0:02:48]} 12. Rc1 {[%clk 0:02:00]}  h5 {[%clk 0:02:42]} 13. Na4 {[%clk 0:01:55]}  Nh6 {[%clk 0:02:40]} 14. Nc5 {[%clk 0:01:28]}  Bxc5 {[%clk 0:02:40]} 15. Rxc5 {[%clk 0:01:29]}  Nf5 {[%clk 0:02:39]} 16. Kd1 {[%clk 0:01:17]}  Nd6 {[%clk 0:02:14]} 17. Ne1 {[%clk 0:00:54]}  Ne4 {[%clk 0:02:12]} 18. Bxe4 {[%clk 0:00:55]}  dxe4 {[%clk 0:02:12]} 19. Qa4 {[%clk 0:00:51]}  Kb8 {[%clk 0:02:06]} 20. Nc2 {[%clk 0:00:50]}  f5 {[%clk 0:01:57]} 21. h4 {[%clk 0:00:49]}  f4 {[%clk 0:01:52]} 22. Rxg5 {[%clk 0:00:46]}  fxg3 {[%clk 0:01:51]} 23. fxg3 {[%clk 0:00:45]}  Rhg8 {[%clk 0:01:48]} 24. Kc1 {[%clk 0:00:32]}  Rxg5 {[%clk 0:01:44]} 25. hxg5 {[%clk 0:00:32]}  Qd5 {[%clk 0:01:40]} 26. g6 {[%clk 0:00:23]}  Bxg6 {[%clk 0:01:38]} 27. Rf1 {[%clk 0:00:24]}  a6 {[%clk 0:01:32]} 28. b3 {[%clk 0:00:21]}  Qg5 {[%clk 0:01:17]} 29. Nb4 {[%clk 0:00:21]}  Nxb4 {[%clk 0:01:12]} 30. Qxb4 {[%clk 0:00:22]}  Qxg3 {[%clk 0:01:10]} 31. Rf8 {[%clk 0:00:23]}  Rxf8 {[%clk 0:01:05]} 32. Qxf8+ {[%clk 0:00:23]}  Ka7 {[%clk 0:01:06]} 33. Qc5+ {[%clk 0:00:21]}  b6 {[%clk 0:01:05]} 34. Qc3 {[%clk 0:00:13]}  h4 {[%clk 0:01:04]} 35. Be1 {[%clk 0:00:14]}  Qh2 {[%clk 0:00:52]} 36. Bxh4 {[%clk 0:00:12]}  c5 {[%clk 0:00:41]} 37. dxc5 {[%clk 0:00:08]}  Qxh4 {[%clk 0:00:37]} 38. Qg7+ {[%clk 0:00:06]}  Kb8 {[%clk 0:00:35]} 39. cxb6 {[%clk 0:00:04]}  Qe1+ {[%clk 0:00:29]} 40. Kb2 {[%clk 0:00:04]}  Qd2+ {[%clk 0:00:28]} 41. Ka3 {[%clk 0:00:03]}  Qa5+ {[%clk 0:00:28]} 42. Kb2 {[%clk 0:00:03]}  Qxb6 {[%clk 0:00:29]} 43. Qe5+ {[%clk 0:00:01]}  Kc8 {[%clk 0:00:28]} 44. Qh8+ {[%clk 0:00:02]}  Kd7 {[%clk 0:00:28]} 45. Qg7+ {[%clk 0:00:02]}  Ke8 {[%clk 0:00:27]} 46. Qh8+ {[%clk 0:00:02]}  Kf7 {[%clk 0:00:25]} 47. Qh6 {[%clk 0:00:03]}  Qf6+ {[%clk 0:00:23]} 48. Ka3 {[%clk 0:00:04]}  Qd6+ {[%clk 0:00:24]} 49. Kb2 {[%clk 0:00:03]}  a5 {[%clk 0:00:23]} 50. Qg5 {[%clk 0:00:03]}  Qf6+ {[%clk 0:00:23]} 51. Qxf6+ {[%clk 0:00:02]}  Kxf6 {[%clk 0:00:24]} 52. Kc3 {[%clk 0:00:02]}  Kf5 {[%clk 0:00:24]} 53. Kd4 {[%clk 0:00:02]}  Kg4 {[%clk 0:00:25]} 54. a3 {[%clk 0:00:02]}  Kf3 {[%clk 0:00:23]} 55. b4 {[%clk 0:00:02]}  axb4 {[%clk 0:00:23]} 56. axb4 {[%clk 0:00:03]}  Be8 {[%clk 0:00:24]} 0-1


[Site "https://www.chess.com"]